fUSD/lending_fUSD_20240409
["ID","MTS","AMOUNT","RATE_DAILY","PERIOD"]
[321945811,1712646365864,206.31215934,0.00018009,2]
[321945812,1712646373127,162.66,0.00024329,15]
[321945813,1712646398824,287.85246364,0.00018009,2]
[321945814,1712646418782,190.42457696,0.00018009,2]
[321945817,1712646526879,2613.44481877,0.00026512,18]
[321945838,1712646631848,-407.25551867,0.00018031,2]
[321945839,1712646631857,-199.86363479,0.00018032,2]
[321945840,1712646631867,-296.00785364,0.00018033,2]
[321945841,1712646631877,-207.31426992,0.00018033,2]
[321945842,1712646631886,-156.89734001,0.00018033,2]
[321945843,1712646631895,-261.69742537,0.00018033,2]
[321945844,1712646631904,-236.21588443,0.00018033,2]
[321945845,1712646631916,-166.98481228,0.00018033,2]
[321945846,1712646631926,-254.88752267,0.00018034,2]
[321945847,1712646631987,-391.20961553,0.00018034,2]
[321945848,1712646631998,-549.8039505,0.00018034,2]
[321945849,1712646632007,-441.53425963,0.00018034,2]
[321945850,1712646632018,-540.396828,0.00018034,2]
[321945851,1712646632032,-285.099995,0.00018034,2]
[321945852,1712646632083,-11859.95676025,0.00018034,2]
[321945853,1712646632092,-537.94448502,0.00018035,2]
[321945854,1712646632102,-6720.2989,0.00018036,2]
[321945855,1712646632111,-9833.49215173,0.00018131,2]
[321945856,1712646632121,-620.80431042,0.00018132,2]
[321945857,1712646632130,-6905.93225118,0.00018132,2]
[321945858,1712646632143,-529.64000001,0.00018132,2]
[321945953,1712646638002,-254.49770115,0.00018132,2]
[321945956,1712646638019,-2122.33,0.00018132,2]
[321945958,1712646638031,-187.59004766,0.00018132,2]
[321945960,1712646638041,-337.49315856,0.00018132,2]
[321945962,1712646638053,-6590.95684144,0.00018132,2]
[321945965,1712646638063,-500.0,0.00018638,3]
[321945968,1712646638074,-150.0,0.00018784,2]
[321945970,1712646638084,-304.65280712,0.00018856,2]
[321945973,1712646638094,-796.02919093,0.00018857,2]
[321945977,1712646638105,-3503.49917373,0.00018858,2]
[321945981,1712646638115,-1097.07,0.00018859,2]
[321945984,1712646638125,-1464.4,0.00018866,2]
[321945987,1712646638135,-6917.78226301,0.00018867,2]
[321946142,1712646640024,-365.03657111,0.00018867,2]
[321946143,1712646640210,-266.78766312,0.00018867,2]
[321946165,1712646642726,-304.65280712,0.00018131,2]
[321946166,1712646642737,-3870.31350276,0.00018867,2]
[321946167,1712646642747,-500.0,0.00018867,2]
[321946168,1712646642757,-1829.32,0.00018871,2]
[321946169,1712646642766,-1000.0,0.00018891,2]
[321946170,1712646642776,-250.0,0.0001893,2]
[321946171,1712646642786,-177.41,0.00018931,2]
[321946172,1712646642796,-162.41,0.00018979,2]
[321946173,1712646642806,-206.46,0.00019001,2]
[321946174,1712646642816,-1137.91,0.00019024,2]
[321946175,1712646642829,-239.77,0.0001908,2]
[321946176,1712646642840,-832.87,0.00019098,2]
[321946177,1712646642849,-13764.64,0.00019117,2]
[321946178,1712646642859,-3931.2,0.00019141,2]
[321946179,1712646642870,-151.11,0.00019156,2]
[321946180,1712646642881,-1000.0,0.00019178,2]
[321946181,1712646642890,-24572.86661426,0.00019198,2]
[321946182,1712646642953,-2191.03330336,0.00019198,2]
[321946183,1712646642965,-5000.92552259,0.00019198,2]
[321946184,1712646642977,-15.79455979,0.00019198,2]
[321946185,1712646642988,-151.11,0.00019281,2]
[321946186,1712646642998,-151.11,0.00019405,2]
[321946187,1712646643007,-756.71,0.00019487,2]
[321946188,1712646643310,-176.83,0.00019527,2]
[321946189,1712646643321,-151.11,0.0001953,2]
[321946190,1712646643330,-151.11,0.00019655,2]
[321946191,1712646643339,-151.11,0.0001978,2]
[321946192,1712646643349,-3662.08215808,0.00019804,2]
[321946411,1712646646428,-4159.70478771,0.00019804,2]
[321946412,1712646646439,-24791.3104,0.000199,2]
[321946413,1712646646448,-151.11,0.00019904,2]
[321946414,1712646646458,-174.08,0.00019914,2]
[321946415,1712646646468,-2253.02917045,0.00019928,2]
[321946416,1712646646477,-2159.53,0.00019985,2]
[321946417,1712646646486,-499.99,0.00019985,2]
[321946418,1712646646496,-3634.0104,0.0001999,2]
[321946419,1712646646505,-364.54,0.0001999,3]
[321946420,1712646646514,-342.34435101,0.00019994,2]
[321946421,1712646646523,-40555.33307621,0.0002,2]
[321946422,1712646646532,-155.0,0.0002,2]
[321946423,1712646646541,-2050.73928786,0.0002,2]
[321946424,1712646646550,-155.0,0.0002,2]
[321946425,1712646646559,-151.11,0.00020029,2]
[321946426,1712646646569,-7821.78694578,0.00020089,2]
[321946427,1712646646579,-785.52907082,0.00020128,2]
[321946428,1712646646588,-151.11,0.00020154,2]
[321946429,1712646646598,-2253.0291704,0.00020199,2]
[321946430,1712646646607,-7821.78694578,0.00020373,2]
[321946431,1712646646616,-167.03,0.00020407,2]
[321946432,1712646646625,-2253.0291704,0.0002047,2]
[321946433,1712646646634,-908.43,0.00020478,2]
[321946434,1712646646643,-526.0,0.0002052,2]
[321946435,1712646646653,-525.0,0.0002052,2]
[321946436,1712646646661,-584.0,0.00020547,2]
[321946437,1712646646671,-295.3385,0.00020619,2]
[321946438,1712646646681,-500.0,0.0002062,2]
[321946439,1712646646691,-153.5500647,0.0002062,2]
[321946440,1712646646700,-500.0,0.0002062,2]
[321946441,1712646646709,-500.0,0.0002062,2]
[321946442,1712646646718,-500.0,0.0002062,2]
[321946443,1712646646727,-264.78083534,0.0002062,2]
[321946444,1712646646736,-1052.24118886,0.00020621,2]
[321946445,1712646646746,-18884.7851,0.00020621,2]
[321946446,1712646646754,-1431.559,0.00020621,2]
[321946447,1712646646763,-4711.5143,0.00020621,2]
[321946448,1712646646772,-7500.0,0.00020621,2]
[321946449,1712646646782,-725.52343859,0.00020645,2]
[321946450,1712646646791,-7821.78694578,0.00020658,2]
[321946451,1712646646800,-154.7,0.00020691,2]
[321946452,1712646646810,-1000.0,0.000207,2]
[321946453,1712646646819,-4572.46475471,0.000207,2]
[321946454,1712646646830,-159.93745301,0.00020711,2]
[321946455,1712646646840,-157.040915,0.00020718,2]
[321946456,1712646646849,-157.040915,0.00020718,2]
[321946457,1712646646859,-157.040915,0.00020718,2]
[321946458,1712646646869,-157.040915,0.00020718,2]
[321946459,1712646646880,-157.040915,0.00020718,2]
[321946460,1712646646890,-156.305592,0.00020719,2]
[321946461,1712646646901,-410.62678064,0.00020719,2]
[321946462,1712646646911,-157.14504858,0.00020719,2]
[321946463,1712646646921,-158.76426366,0.00020719,2]
[321946464,1712646646930,-263.82350702,0.00020719,2]
[321946465,1712646646939,-1360.16371783,0.00020719,2]
[321946466,1712646646949,-433.12071206,0.00020719,2]
[321946467,1712646646961,-722.66655878,0.00020719,2]
[321946468,1712646646973,-283.17399469,0.00020719,2]
[321946469,1712646646983,-191.98693231,0.00020719,2]
[321946470,1712646646994,-155.92214717,0.00020719,2]
[321946471,1712646647003,-209.99236181,0.00020719,2]
[321946472,1712646647013,-547.24726264,0.00020719,2]
[321946473,1712646647024,-217.91374955,0.00020719,2]
[321946474,1712646647034,-166.78819848,0.00020719,2]
[321946475,1712646647044,-208.07835669,0.00020719,2]
[321946476,1712646647054,-237.1576047,0.00020719,2]
[321946477,1712646647064,-4622.73297192,0.00020721,2]
[321946478,1712646647074,-152.91375919,0.00020721,2]
[321946479,1712646647083,-254.4977,0.00020721,2]
[321946480,1712646647093,-39944.8804,0.00020721,2]
[321946481,1712646647101,-2872.80782494,0.00020721,2]
[321946482,1712646664561,191.99,0.00016712,2]
[321946483,1712646703357,804.62,0.00017886,2]
[321946484,1712646707878,435.33225777,0.00016712,2]
[321946485,1712646714564,300.0,0.00017936,2]
[321946486,1712646726458,435.33225777,0.00016712,2]
[321946487,1712646741909,435.33225777,0.00016712,2]
[321946488,1712646759963,435.33225777,0.00016712,2]
[321946489,1712646777888,435.33225777,0.00016712,2]
[321946490,1712646793874,435.33225777,0.00016712,2]
[321946491,1712646811879,435.33225777,0.00016712,2]
[321946492,1712646829946,435.33225777,0.00016712,2]
[321946493,1712646851868,505.18007145,0.00016712,2]
[321946494,1712646901853,162.66,0.00024329,15]
[321946495,1712647069361,766.16178766,0.000297,120]
[321946496,1712647155926,3254.76670802,0.00026512,18]
[321946497,1712647178632,764.38,0.00017316,2]
[321946498,1712647302049,885.30686175,0.000242,15]
[321946499,1712647367432,5000.0,0.000265,20]
[321946500,1712647423858,162.66,0.00024329,15]
[321946501,1712647546306,5000.0,0.000252,17]
[321946506,1712647632965,5000.0,0.00025,10]
[321946507,1712647693022,497.78186639,0.00017075,2]
[321946508,1712647693056,228.37813361,0.00017075,2]
[321946509,1712647695864,-704.91869228,0.00018886,2]
[321946510,1712647695889,-304.65280712,0.00018886,2]
[321946511,1712647695914,-1000.0,0.00018887,2]
[321946512,1712647695938,-155.0,0.00018887,2]
[321946513,1712647695965,-159.20696971,0.00018888,2]
[321946514,1712647695990,-800.0,0.00018993,2]
[321946515,1712647696015,-239.77,0.00018995,2]
[321946516,1712647696039,-453.0,0.00018997,2]
[321946517,1712647696065,-150.0,0.00018998,2]
[321946518,1712647696091,-9583.45153089,0.00018999,2]
[321946519,1712647697015,5000.0,0.00025,10]
[321946547,1712647804480,237.0819,0.000242,15]
[321946565,1712647831712,-4549.2899,0.00018899,2]
[321946566,1712647831722,-25595.0806824,0.00018999,2]
[321946567,1712647831731,-4351.84536889,0.00019,2]
[321946568,1712647831740,-150.99,0.00019072,2]
[321946569,1712647831751,-6668.92495843,0.00019107,2]
[321946570,1712647831760,-383.42,0.00019107,2]
[321946571,1712647831771,-2751.0,0.00019108,2]
[321946572,1712647831780,-250.0,0.00019116,2]
[321946573,1712647831790,-500.0,0.00019126,2]
[321946574,1712647831800,-153.58,0.00019227,2]
[321946575,1712647831809,-200.0,0.00019241,2]
[321946576,1712647831819,-213.57,0.00019247,2]
[321946577,1712647831830,-726.16,0.00019339,2]
[321946578,1712647831841,-159.20696969,0.00019346,2]
[321946579,1712647831850,-158.4,0.00019377,2]
[321946580,1712647831859,-158.4,0.00019441,2]
[321946581,1712647831868,-158.4,0.00019504,2]
[321946582,1712647831878,-158.4,0.00019567,2]
[321946583,1712647831887,-1927.11,0.0001958,2]
[321946584,1712647831896,-548.98,0.00019583,2]
[321946585,1712647831906,-158.4,0.0001963,2]
[321946586,1712647831916,-500.0,0.00019662,2]
[321946587,1712647831928,-9432.45616108,0.00019682,2]
[321946588,1712647831937,-1289.8622422,0.00019683,2]
[321946589,1712647831946,-2206.81983108,0.00019683,2]
[321946590,1712647831955,-158.4,0.00019693,2]
[321946591,1712647831965,-158.4,0.00019756,2]
[321946592,1712647831975,-159.20696969,0.00019805,2]
[321946593,1712647831985,-158.4,0.00019819,2]
[321946594,1712647831994,-168.07,0.0001982,2]
[321946595,1712647832003,-158.4,0.00019882,2]
[321946596,1712647832013,-1569.0516,0.000199,2]
[321946597,1712647832021,-158.4,0.00019945,2]
[321946598,1712647832031,-4536.90381458,0.0002,2]
[321946599,1712647832040,-750.0,0.0002,2]
[321946600,1712647832049,-561.59017142,0.0002,2]
[321946601,1712647832058,-158.4,0.00020008,2]
[321946602,1712647832067,-158.4,0.00020072,2]
[321946603,1712647832076,-158.4,0.00020135,2]
[321946604,1712647832085,-158.4,0.00020198,2]
[321946605,1712647832094,-158.4,0.00020261,2]
[321946606,1712647832104,-159.20696969,0.00020263,2]
[321946607,1712647832114,-150.0,0.00020274,2]
[321946608,1712647832125,-177.61,0.00020274,2]
[321946609,1712647832135,-520.17,0.00020274,2]
[321946610,1712647832144,-349.13,0.00020274,2]
[321946611,1712647832154,-246.85,0.00020274,2]
[321946612,1712647832164,-162.18,0.00020274,2]
[321946613,1712647832178,-40000.00000001,0.00020313,2]
[321946614,1712647832188,-158.4,0.00020324,2]
[321946615,1712647832197,-158.4,0.00020387,2]
[321946616,1712647832206,-150.0,0.00020497,2]
[321946617,1712647832217,-680.45979,0.0002051,2]
[321946618,1712647832226,-680.4598,0.0002051,2]
[321946619,1712647832235,-2427.2305,0.0002052,2]
[321946620,1712647832246,-2609.99017162,0.00020521,2]
[321946621,1712647832255,-7098.75396344,0.00020521,2]
[321946622,1712647832265,-1000.0,0.00020521,2]
[321946623,1712647832275,-2639.6917,0.00020521,2]
[321946624,1712647832284,-150.0,0.00020533,2]
[321946625,1712647832294,-526.0,0.00020547,2]
[321946626,1712647832303,-525.0,0.00020547,2]
[321946627,1712647832313,-417.68,0.00020548,2]
[321946628,1712647832322,-680.4598,0.0002055,2]
[321946629,1712647832331,-1324.49917181,0.00020621,2]
[321946630,1712647832756,-698.50472819,0.00020621,2]
[321946632,1712647832766,-2088.51518715,0.00020621,2]
[321946634,1712647832778,-3603.95111285,0.00020621,2]
[321946635,1712647832787,-1656.34264272,0.00020621,2]
[321946636,1712647832799,-3932.35841878,0.00020621,2]
[321946637,1712647832813,-882.33461522,0.00020621,2]
[321946638,1712647832824,-2154.94859867,0.00020621,2]
[321946643,1712647832877,-1412.8472,0.00020621,2]
[321946645,1712647832888,-4039.37232461,0.00020621,2]
[321946646,1712647832898,-66560.62767538,0.00020621,2]
[321946647,1712647832909,-5411.11722462,0.00020621,2]
[321946648,1712647832919,-500.0,0.00020621,2]
[321946649,1712647832934,-354.77,0.00020689,2]
[321946650,1712647832943,-349.26,0.00020689,2]
[321946651,1712647832953,-150.0,0.00020689,2]
[321946652,1712647832963,-162.23,0.00020689,2]
[321946653,1712647832972,-610.63,0.00020689,2]
[321946654,1712647832981,-319.81,0.00020689,2]
[321946655,1712647832991,-304.19,0.00020689,2]
[321946656,1712647833000,-162.23,0.00020689,2]
[321946657,1712647833010,-349.26,0.00020689,2]
[321946658,1712647833019,-162.23,0.00020689,2]
[321946659,1712647833028,-504.62,0.00020689,2]
[321946660,1712647833038,-4569.43262731,0.000207,2]
[321946661,1712647833048,-2040.10101628,0.00020708,2]
[321946662,1712647833059,-196.08675948,0.00020719,2]
[321946663,1712647833068,-296.08899939,0.00020719,2]
[321946664,1712647833078,-182.36434992,0.00020719,2]
[321946665,1712647833087,-218.65956978,0.00020719,2]
[321946666,1712647833097,-191.90200664,0.00020719,2]
[321946667,1712647833107,-155.18313373,0.00020719,2]
[321946668,1712647833119,-210.77585199,0.00020719,2]
[321946669,1712647833133,-296.00059271,0.00020719,2]
[321946670,1712647833143,-1213.8682992,0.00020719,2]
[321946671,1712647833153,-322.09217481,0.00020719,2]
[321946672,1712647833164,-156.08876119,0.00020719,2]
[321946673,1712647833181,-2544.91689047,0.00020719,2]
[321946674,1712647833191,-260.67105467,0.00020719,2]
[321946675,1712647833201,-768.67151564,0.00020719,2]
[321946676,1712647833211,-157.05524641,0.00020719,2]
[321946677,1712647833227,-197.79510196,0.00020719,2]
[321946678,1712647833237,-735.98049015,0.00020719,2]
[321946679,1712647833247,-375.34102279,0.00020719,2]
[321946680,1712647833258,-228.63705856,0.00020719,2]
[321946681,1712647833269,-531.39042802,0.00020719,2]
[321946682,1712647833279,-2461.67,0.0002072,2]
[321946683,1712647833289,-2461.67,0.0002072,2]
[321946684,1712647833299,-2461.67,0.0002072,2]
[321946685,1712647833308,-2461.67,0.0002072,2]
[321946686,1712647833318,-2461.67,0.0002072,2]
[321946687,1712647833328,-2461.67,0.0002072,2]
[321946688,1712647833338,-2461.67,0.0002072,2]
[321946689,1712647833348,-2461.67,0.0002072,2]
[321946690,1712647833358,-2461.67,0.0002072,2]
[321946691,1712647833368,-2461.67,0.0002072,2]
[321946692,1712647833378,-2461.67,0.0002072,2]
[321946693,1712647833389,-2461.67,0.0002072,2]
[321946694,1712647833399,-2461.67,0.0002072,2]
[321946695,1712647833408,-2461.67,0.0002072,2]
[321946696,1712647833418,-2461.67,0.0002072,2]
[321946697,1712647833435,-2461.67,0.0002072,2]
[321946698,1712647833445,-2461.67,0.0002072,2]
[321946699,1712647833455,-2461.67,0.0002072,2]
[321946700,1712647833464,-2461.67,0.0002072,2]
[321946701,1712647833474,-2461.67,0.0002072,2]
[321946702,1712647833484,-2461.67,0.0002072,2]
[321946703,1712647833493,-2461.67,0.0002072,2]
[321946704,1712647833502,-2461.67,0.0002072,2]
[321946705,1712647833511,-2461.84590977,0.0002072,2]
[321946706,1712647833520,-169.59288491,0.00020721,2]
[321946707,1712647833530,-4906.53968558,0.00020721,2]
[321946708,1712647833539,-159.20696969,0.00020721,2]
[321946709,1712647833549,-680.4598,0.00020721,2]
[321946710,1712647833558,-680.4598,0.00020721,2]
[321946711,1712647833568,-680.4598,0.00020721,2]
[321946712,1712647833577,-1000.0,0.00020721,2]
[321946713,1712647833587,-10000.0,0.00020721,2]
[321946714,1712647833596,-7500.0,0.00020721,2]
[321946715,1712647833606,-2609.99017157,0.00020726,2]
[321946716,1712647833615,-7098.75396337,0.00020726,2]
[321946717,1712647833625,-500.0,0.00020758,2]
[321946718,1712647833634,-152.0,0.0002076,3]
[321946719,1712647833643,-13205.65012927,0.000208,2]
[321946720,1712647833652,-250.0,0.000208,2]
[321946721,1712647833660,-250.0,0.000208,2]
[321946722,1712647833669,-481.5,0.000208,2]
[321946723,1712647833686,-319.45672021,0.00020809,2]
[321946724,1712647833696,-180.80177664,0.00020811,2]
[321946725,1712647833706,-157.040915,0.00020817,2]
[321946726,1712647833715,-157.040915,0.00020817,2]
[321946727,1712647833724,-157.040915,0.00020817,2]
[321946728,1712647833733,-157.040915,0.00020817,2]
[321946729,1712647833742,-157.040915,0.00020817,2]
[321946730,1712647833751,-157.040915,0.00020817,2]
[321946731,1712647833760,-157.040915,0.00020818,2]
[321946732,1712647833769,-157.040915,0.00020818,2]
[321946733,1712647833779,-157.040915,0.00020818,2]
[321946734,1712647833788,-157.040915,0.00020818,2]
[321946735,1712647833797,-157.040915,0.00020818,2]
[321946736,1712647833806,-157.040915,0.00020818,2]
[321946737,1712647833815,-157.040915,0.00020818,2]
[321946738,1712647833826,-157.040915,0.00020818,2]
[321946739,1712647833835,-157.040915,0.00020818,2]
[321946740,1712647833842,-157.040915,0.00020818,2]
[321946741,1712647833849,-1259.68016233,0.00020819,2]
[321946742,1712647833856,-333.99742646,0.00020819,2]
[321946743,1712647833863,-243.41843626,0.00020819,2]
[321946744,1712647833872,-159.26314324,0.00020819,2]
[321946745,1712647833881,-156.84661505,0.00020819,2]
[321946746,1712647833891,-164.58049588,0.00020819,2]
[321946747,1712647833900,-1182.77811126,0.00020819,2]
[321946748,1712647833908,-382.6502619,0.00020819,2]
[321946749,1712647833917,-155.18182747,0.00020819,2]
[321946750,1712647833930,-358.74969927,0.00020819,2]
[321946751,1712647833938,-279.63999998,0.00020819,2]
[321946752,1712647833948,-626.17481547,0.00020819,2]
[321946753,1712647833958,-348.43550149,0.00020819,2]
[321946754,1712647833967,-1955.47369817,0.00020819,2]
[321946755,1712647833977,-1296.33667789,0.00020819,2]
[321946756,1712647833987,-682.253116,0.00020819,2]
[321946757,1712647833996,-161.0358996,0.00020819,2]
[321946758,1712647834005,-736.42959233,0.00020819,2]
[321946759,1712647834014,-229.66414078,0.00020819,2]
[321946760,1712647834023,-213.58271905,0.00020819,2]
[321946761,1712647834032,-155.15417133,0.00020819,2]
[321946762,1712647834041,-4478.25850184,0.00020819,2]
[321946763,1712647834051,-1742.56076105,0.00020819,2]
[321946764,1712647834060,-155.11496605,0.00020819,2]
[321946765,1712647834068,-156.21258437,0.00020819,2]
[321946766,1712647834079,-601.31088268,0.00020819,2]
[321946767,1712647834088,-155.70349364,0.00020819,2]
[321946768,1712647834097,-155.59751576,0.00020819,2]
[321946769,1712647834106,-1680.53225333,0.00020819,2]
[321946770,1712647834115,-156.03666562,0.00020819,2]
[321946771,1712647834125,-476.18575767,0.00020819,2]
[321946772,1712647834135,-155.66091899,0.00020819,2]
[321946773,1712647834145,-155.24207257,0.00020819,2]
[321946774,1712647834154,-2137.61813026,0.00020819,2]
[321946775,1712647834163,-200.0,0.00020819,2]
[321946776,1712647834176,-155.99702311,0.00020819,2]
[321946777,1712647834186,-755.19792683,0.00020819,2]
[321946778,1712647834195,-155.319273,0.00020819,2]
[321946779,1712647834205,-256.2216346,0.00020819,2]
[321946780,1712647834214,-155.39292941,0.00020819,2]
[321946781,1712647834223,-221.28770632,0.00020819,2]
[321946782,1712647834232,-262.33172171,0.00020819,2]
[321946783,1712647834242,-351.13128228,0.00020819,2]
[321946784,1712647834254,-500.0,0.00020819,2]
[321946785,1712647834264,-2124.44129545,0.0002082,2]
[321946786,1712647834273,-275.73691291,0.0002082,2]
[321946787,1712647834282,-500.0,0.0002082,2]
[321946788,1712647834291,-500.0,0.0002082,2]
[321946789,1712647834301,-173.89342778,0.0002082,2]
[321946790,1712647834310,-382.76842817,0.0002082,2]
[321946791,1712647834319,-189.84724871,0.0002082,2]
[321946792,1712647834328,-500.0,0.00020821,2]
[321946793,1712647834338,-500.0,0.00020821,2]
[321946794,1712647834348,-501.13542737,0.00020821,2]
[321946795,1712647834357,-500.0,0.00020821,2]
[321946796,1712647834367,-270.71477142,0.00020821,2]
[321946797,1712647834376,-500.0,0.00020821,2]
[321946798,1712647834385,-502.80437946,0.00020821,2]
[321946799,1712647834394,-500.0,0.00020821,2]
[321946800,1712647834404,-500.0,0.00020821,2]
[321946801,1712647834413,-500.0,0.00020821,2]
[321946802,1712647834425,-500.0,0.00020821,2]
[321946803,1712647834434,-464.1574828,0.00020821,2]
[321946804,1712647834443,-500.0,0.00020821,2]
[321946805,1712647834452,-500.0,0.00020821,2]
[321946806,1712647834461,-646.66372947,0.00020821,2]
[321946807,1712647834470,-294.26503421,0.00020821,2]
[321946808,1712647834479,-502.25452331,0.00020821,2]
[321946809,1712647834489,-500.0,0.00020821,2]
[321946810,1712647834498,-500.0,0.00020821,2]
[321946811,1712647834507,-500.0,0.00020821,2]
[321946812,1712647834517,-500.0,0.00020821,2]
[321946813,1712647834527,-500.0,0.00020821,2]
[321946814,1712647834536,-500.0,0.00020821,2]
[321946815,1712647834546,-528.34938686,0.00020821,2]
[321946816,1712647834555,-500.0,0.00020821,2]
[321946817,1712647834565,-500.0,0.00020821,2]
[321946818,1712647834574,-500.0,0.00020821,2]
[321946819,1712647834583,-500.0,0.00020821,2]
[321946820,1712647834593,-500.0,0.00020821,2]
[321946821,1712647834602,-500.0,0.00020821,2]
[321946822,1712647834611,-582.23010941,0.00020821,2]
[321946823,1712647834621,-500.0,0.00020821,2]
[321946824,1712647834630,-500.0,0.00020821,2]
[321946825,1712647834639,-500.0,0.00020821,2]
[321946826,1712647834648,-500.0,0.00020821,2]
[321946827,1712647834658,-505.50787726,0.00020821,2]
[321946828,1712647834667,-500.0,0.00020821,2]
[321946829,1712647834679,-500.0,0.00020821,2]
[321946830,1712647834689,-500.0,0.00020821,2]
[321946831,1712647834698,-602.35474491,0.00020821,2]
[321946832,1712647834707,-500.0,0.00020821,2]
[321946833,1712647834717,-502.79213553,0.00020821,2]
[321946834,1712647834726,-574.49797927,0.00020821,2]
[321946835,1712647834736,-500.0,0.00020821,2]
[321946836,1712647834745,-500.0,0.00020821,2]
[321946837,1712647834755,-500.0,0.00020821,2]
[321946838,1712647834765,-500.0,0.00020821,2]
[321946839,1712647834775,-363.45908995,0.00020821,2]
[321946840,1712647834784,-500.0,0.00020821,2]
[321946841,1712647834794,-500.0,0.00020821,2]
[321946842,1712647834803,-500.0,0.00020821,2]
[321946843,1712647834812,-500.0,0.00020821,2]
[321946844,1712647834821,-500.0,0.00020821,2]
[321946845,1712647834830,-500.0,0.00020821,2]
[321946846,1712647834839,-500.0,0.00020821,2]
[321946847,1712647834848,-267.58586059,0.00020821,2]
[321946848,1712647834857,-501.0389576,0.00020821,2]
[321946849,1712647834866,-501.88910994,0.00020821,2]
[321946850,1712647834875,-500.0,0.00020821,2]
[321946851,1712647834884,-500.0,0.00020821,2]
[321946852,1712647834893,-503.286717,0.00020821,2]
[321946853,1712647834903,-593.48897874,0.00020821,2]
[321946854,1712647834912,-500.0,0.00020821,2]
[321946855,1712647834921,-501.88417572,0.00020821,2]
[321946856,1712647834934,-500.0,0.00020821,2]
[321946857,1712647834943,-501.02396878,0.00020821,2]
[321946858,1712647834952,-500.0,0.00020821,2]
[321946859,1712647834961,-500.0,0.00020821,2]
[321946860,1712647834971,-245.88326281,0.00020821,2]
[321946861,1712647834980,-541.15097897,0.00020821,2]
[321946862,1712647834989,-473.4204202,0.00020821,2]
[321946863,1712647834998,-500.0,0.00020821,2]
[321946864,1712647835007,-500.0,0.00020821,2]
[321946865,1712647835016,-500.0,0.00020821,2]
[321946866,1712647835026,-500.99304388,0.00020821,2]
[321946867,1712647835035,-500.0,0.00020821,2]
[321946868,1712647835045,-437.12759801,0.00020821,2]
[321946869,1712647835055,-500.0,0.00020821,2]
[321946870,1712647835065,-500.0,0.00020821,2]
[321946871,1712647835074,-500.0,0.00020821,2]
[321946872,1712647835084,-542.98758244,0.00020821,2]
[321946873,1712647835093,-500.0,0.00020821,2]
[321946874,1712647835104,-500.0,0.00020821,2]
[321946875,1712647835113,-528.79798511,0.00020821,2]
[321946876,1712647835123,-500.0,0.00020821,2]
[321946877,1712647835134,-500.23842455,0.00020821,2]
[321946878,1712647835144,-512.8208336,0.00020821,2]
[321946879,1712647835153,-500.0,0.00020821,2]
[321946880,1712647835164,-500.0,0.00020821,2]
[321946881,1712647835182,-500.0,0.00020821,2]
[321946882,1712647835192,-745.92,0.00020821,2]
[321946883,1712647835201,-500.0,0.00020821,2]
[321946884,1712647835211,-500.0,0.00020821,2]
[321946885,1712647835221,-500.0,0.00020821,2]
[321946886,1712647835230,-500.0,0.00020821,2]
[321946887,1712647835239,-596.85,0.00020821,2]
[321946888,1712647835256,-500.0,0.00020821,2]
[321946889,1712647835270,-508.14003137,0.00020821,2]
[321946890,1712647835285,-500.0,0.00020821,2]
[321946891,1712647835299,-796.63,0.00020821,2]
[321946892,1712647835311,-860.54,0.00020821,2]
[321946893,1712647835322,-596.68,0.00020821,2]
[321946894,1712647835335,-500.0,0.00020821,2]
[321946895,1712647835347,-500.0,0.00020821,2]
[321946896,1712647835360,-500.0,0.00020821,2]